[Event "Titled Tuesday Blitz October 11 Late 2022"]
[White "Paravyan, David"]
[Black "Danielyan, Vahe"]
[WhiteFideId "4194985"]
[BlackFideId "13304828"]
[WhiteElo "2555"]
[BlackElo "2421"]
[Result "1-0"]
[Round "03"]
[TimeControl "180+1"]
[Date "2022.10.11"]
[WhiteClock "0:00:09"]
[BlackClock "0:00:04"]

1. e4 {[%clk 0:02:57]}  c6 {[%clk 0:03:00]} 2. d4 {[%clk 0:02:54]}  d5 {[%clk 0:03:00]} 3. e5 {[%clk 0:02:55]}  Bf5 {[%clk 0:02:59]} 4. h4 {[%clk 0:02:55]}  h6 {[%clk 0:02:59]} 5. Bd3 {[%clk 0:02:55]}  Bxd3 {[%clk 0:02:59]} 6. cxd3 {[%clk 0:02:56]}  e6 {[%clk 0:02:59]} 7. Nc3 {[%clk 0:02:53]}  Nd7 {[%clk 0:03:00]} 8. h5 {[%clk 0:02:52]}  Ne7 {[%clk 0:02:57]} 9. Nf3 {[%clk 0:02:51]}  Nf5 {[%clk 0:02:56]} 10. g4 {[%clk 0:02:51]}  Ne7 {[%clk 0:02:57]} 11. Kf1 {[%clk 0:02:51]}  c5 {[%clk 0:02:55]} 12. dxc5 {[%clk 0:02:50]}  Nxc5 {[%clk 0:02:56]} 13. d4 {[%clk 0:02:48]}  Ne4 {[%clk 0:02:51]} 14. Qb3 {[%clk 0:02:42]}  Nxc3 {[%clk 0:02:47]} 15. bxc3 {[%clk 0:02:42]}  b6 {[%clk 0:02:47]} 16. Be3 {[%clk 0:02:23]}  Rc8 {[%clk 0:02:46]} 17. Rc1 {[%clk 0:02:22]}  Nc6 {[%clk 0:02:45]} 18. c4 {[%clk 0:02:19]}  dxc4 {[%clk 0:02:35]} 19. Qxc4 {[%clk 0:02:20]}  Qd5 {[%clk 0:02:31]} 20. Qxd5 {[%clk 0:02:20]}  exd5 {[%clk 0:02:29]} 21. Ng1 {[%clk 0:02:20]}  Ba3 {[%clk 0:02:23]} 22. Rc3 {[%clk 0:02:17]}  Bb4 {[%clk 0:02:21]} 23. Rc2 {[%clk 0:02:16]}  Kd7 {[%clk 0:02:20]} 24. Ne2 {[%clk 0:02:13]}  Na5 {[%clk 0:02:19]} 25. Rxc8 {[%clk 0:02:09]}  Rxc8 {[%clk 0:02:20]} 26. Nf4 {[%clk 0:02:09]}  Be7 {[%clk 0:01:38]} 27. Nxd5 {[%clk 0:02:08]}  Rc2 {[%clk 0:01:39]} 28. Nxe7 {[%clk 0:02:05]}  Kxe7 {[%clk 0:01:39]} 29. g5 {[%clk 0:02:02]}  Nc4 {[%clk 0:01:36]} 30. Bf4 {[%clk 0:01:30]}  hxg5 {[%clk 0:01:36]} 31. Bxg5+ {[%clk 0:01:31]}  Ke6 {[%clk 0:01:36]} 32. h6 {[%clk 0:01:27]}  gxh6 {[%clk 0:01:37]} 33. Rxh6+ {[%clk 0:01:25]}  Kd5 {[%clk 0:01:38]} 34. Rh7 {[%clk 0:01:11]}  Kxd4 {[%clk 0:01:30]} 35. Rxf7 {[%clk 0:01:11]}  Kxe5 {[%clk 0:01:27]} 36. Rxa7 {[%clk 0:01:09]}  Kf5 {[%clk 0:01:22]} 37. Bh6 {[%clk 0:01:04]}  Kg6 {[%clk 0:01:22]} 38. Bf4 {[%clk 0:01:02]}  Kf5 {[%clk 0:01:23]} 39. Bg3 {[%clk 0:01:00]}  Ke4 {[%clk 0:01:20]} 40. a4 {[%clk 0:00:57]}  Ra2 {[%clk 0:01:20]} 41. Kg2 {[%clk 0:00:53]}  Ne3+ {[%clk 0:01:13]} 42. Kh3 {[%clk 0:00:53]}  Nd5 {[%clk 0:01:14]} 43. Kg4 {[%clk 0:00:51]}  b5 {[%clk 0:01:10]} 44. a5 {[%clk 0:00:49]}  b4 {[%clk 0:01:11]} 45. a6 {[%clk 0:00:48]}  b3 {[%clk 0:01:11]} 46. Rb7 {[%clk 0:00:48]}  Rxa6 {[%clk 0:01:02]} 47. f3+ {[%clk 0:00:47]}  Kd4 {[%clk 0:00:58]} 48. Rxb3 {[%clk 0:00:48]}  Rg6+ {[%clk 0:00:57]} 49. Kh3 {[%clk 0:00:48]}  Rh6+ {[%clk 0:00:56]} 50. Kg2 {[%clk 0:00:48]}  Ra6 {[%clk 0:00:52]} 51. Bf2+ {[%clk 0:00:20]}  Ke5 {[%clk 0:00:47]} 52. Rb5 {[%clk 0:00:20]}  Ra2 {[%clk 0:00:46]} 53. Kg3 {[%clk 0:00:20]}  Ke6 {[%clk 0:00:47]} 54. Rb8 {[%clk 0:00:19]}  Ra3 {[%clk 0:00:42]} 55. Bd4 {[%clk 0:00:18]}  Rd3 {[%clk 0:00:38]} 56. Re8+ {[%clk 0:00:17]}  Kf7 {[%clk 0:00:32]} 57. Re4 {[%clk 0:00:16]}  Nc3 {[%clk 0:00:29]} 58. Rf4+ {[%clk 0:00:15]}  Kg6 {[%clk 0:00:28]} 59. Kf2 {[%clk 0:00:14]}  Nb5 {[%clk 0:00:25]} 60. Be3 {[%clk 0:00:14]}  Rb3 {[%clk 0:00:25]} 61. Rc4 {[%clk 0:00:14]}  Rb2+ {[%clk 0:00:25]} 62. Kg3 {[%clk 0:00:14]}  Kf5 {[%clk 0:00:23]} 63. Rc5+ {[%clk 0:00:14]}  Ke6 {[%clk 0:00:23]} 64. f4 {[%clk 0:00:14]}  Rb3 {[%clk 0:00:24]} 65. Kf2 {[%clk 0:00:14]}  Rb2+ {[%clk 0:00:24]} 66. Kf3 {[%clk 0:00:14]}  Rb3 {[%clk 0:00:25]} 67. Rh5 {[%clk 0:00:12]}  Nd4+ {[%clk 0:00:24]} 68. Ke4 {[%clk 0:00:12]}  Nf5 {[%clk 0:00:20]} 69. Bf2 {[%clk 0:00:11]}  Ng3+ {[%clk 0:00:18]} 70. Bxg3 {[%clk 0:00:11]}  Rxg3 {[%clk 0:00:19]} 71. Rh6+ {[%clk 0:00:10]}  Kf7 {[%clk 0:00:19]} 72. Kf5 {[%clk 0:00:09]}  Ra3 {[%clk 0:00:19]} 73. Rh7+ {[%clk 0:00:10]}  Kg8 {[%clk 0:00:19]} 74. Re7 {[%clk 0:00:10]}  Kf8 {[%clk 0:00:19]} 75. Kf6 {[%clk 0:00:09]}  Ra6+ {[%clk 0:00:17]} 76. Re6 {[%clk 0:00:10]}  Ra4 {[%clk 0:00:16]} 77. f5 {[%clk 0:00:10]}  Ra8 {[%clk 0:00:16]} 78. Rc6 {[%clk 0:00:07]}  Rb8 {[%clk 0:00:16]} 79. Ra6 {[%clk 0:00:07]}  Rc8 {[%clk 0:00:16]} 80. Kg6 {[%clk 0:00:07]}  Kg8 {[%clk 0:00:15]} 81. f6 {[%clk 0:00:08]}  Rd8 {[%clk 0:00:15]} 82. Ra7 {[%clk 0:00:08]}  Rb8 {[%clk 0:00:06]} 83. Rg7+ {[%clk 0:00:08]}  Kh8 {[%clk 0:00:04]} 84. Rh7+ {[%clk 0:00:09]}  Kg8 {[%clk 0:00:04]} 85. f7+ {[%clk 0:00:09]} 1-0


[Site "https://www.chess.com"]

[Event "Titled Tuesday Blitz October 11 Late 2022"]
[White "Petrova, Irina"]
[Black "Taboas Rodriguez, Daniel"]
[WhiteFideId "14124122"]
[BlackFideId "2208466"]
[WhiteElo "2023"]
[BlackElo "2429"]
[Result "0-1"]
[Round "03"]
[TimeControl "180+1"]
[Date "2022.10.12"]
[WhiteClock "0:00:01"]
[BlackClock "0:00:12"]

1. e4 {[%clk 0:03:00]}  e5 {[%clk 0:02:57]} 2. Nf3 {[%clk 0:03:00]}  Nc6 {[%clk 0:02:57]} 3. Bb5 {[%clk 0:02:59]}  Nf6 {[%clk 0:02:57]} 4. d3 {[%clk 0:02:59]}  d6 {[%clk 0:02:57]} 5. h3 {[%clk 0:02:55]}  g6 {[%clk 0:02:57]} 6. O-O {[%clk 0:02:50]}  Bg7 {[%clk 0:02:56]} 7. c4 {[%clk 0:02:50]}  O-O {[%clk 0:02:54]} 8. Nc3 {[%clk 0:02:50]}  Nh5 {[%clk 0:02:52]} 9. Nd5 {[%clk 0:02:41]}  Nb8 {[%clk 0:02:45]} 10. Ba4 {[%clk 0:02:38]}  c6 {[%clk 0:02:44]} 11. Nc3 {[%clk 0:02:36]}  Nd7 {[%clk 0:02:37]} 12. d4 {[%clk 0:02:23]}  Qe7 {[%clk 0:02:31]} 13. Bc2 {[%clk 0:02:16]}  exd4 {[%clk 0:01:58]} 14. Nxd4 {[%clk 0:02:17]}  Ne5 {[%clk 0:01:58]} 15. b3 {[%clk 0:02:10]}  Qh4 {[%clk 0:01:46]} 16. Be3 {[%clk 0:02:04]}  Bxh3 {[%clk 0:01:26]} 17. gxh3 {[%clk 0:01:54]}  Qxh3 {[%clk 0:01:27]} 18. f3 {[%clk 0:00:53]}  c5 {[%clk 0:00:53]} 19. Ndb5 {[%clk 0:00:53]}  Qg3+ {[%clk 0:00:46]} 20. Kh1 {[%clk 0:00:53]}  Qh4+ {[%clk 0:00:46]} 21. Kg2 {[%clk 0:00:46]}  Qg3+ {[%clk 0:00:35]} 22. Kh1 {[%clk 0:00:46]}  Qh3+ {[%clk 0:00:36]} 23. Kg1 {[%clk 0:00:46]}  Ng3 {[%clk 0:00:36]} 24. Kf2 {[%clk 0:00:15]}  a6 {[%clk 0:00:19]} 25. Na3 {[%clk 0:00:07]}  Qh2+ {[%clk 0:00:17]} 26. Ke1 {[%clk 0:00:07]}  Ng4 {[%clk 0:00:17]} 27. fxg4 {[%clk 0:00:07]}  Bxc3+ {[%clk 0:00:17]} 28. Bd2 {[%clk 0:00:06]}  Bxa1 {[%clk 0:00:14]} 29. Bd3 {[%clk 0:00:02]}  Nxf1 {[%clk 0:00:12]} 30. Bxf1 {[%clk 0:00:01]}  Bd4 {[%clk 0:00:12]} 0-1


[Site "https://www.chess.com"]

[Event "Titled Tuesday Blitz October 11 Late 2022"]
[White "Polanco Nunez, Yoel Estarling"]
[Black "Tan, Ralph"]
[WhiteFideId "6401783"]
[BlackFideId "30966590"]
[WhiteElo "2132"]
[BlackElo "2059"]
[Result "1/2-1/2"]
[Round "03"]
[TimeControl "180+1"]
[Date "2022.10.12"]
[WhiteClock "0:00:13"]
[BlackClock "0:00:17"]

1. Nf3 {[%clk 0:03:00]}  Nf6 {[%clk 0:03:00]} 2. g3 {[%clk 0:03:01]}  g6 {[%clk 0:03:00]} 3. Bg2 {[%clk 0:03:02]}  Bg7 {[%clk 0:03:00]} 4. d4 {[%clk 0:03:02]}  O-O {[%clk 0:02:59]} 5. O-O {[%clk 0:03:02]}  d5 {[%clk 0:02:59]} 6. Nc3 {[%clk 0:03:02]}  c6 {[%clk 0:02:59]} 7. Ne5 {[%clk 0:03:01]}  Bf5 {[%clk 0:02:53]} 8. Re1 {[%clk 0:03:00]}  Nbd7 {[%clk 0:02:50]} 9. Bf4 {[%clk 0:02:49]}  Nh5 {[%clk 0:02:31]} 10. Nxd7 {[%clk 0:02:48]}  Qxd7 {[%clk 0:02:30]} 11. Qd2 {[%clk 0:02:37]}  Nxf4 {[%clk 0:02:26]} 12. Qxf4 {[%clk 0:02:38]}  Rfe8 {[%clk 0:02:23]} 13. Rad1 {[%clk 0:02:37]}  e5 {[%clk 0:02:23]} 14. dxe5 {[%clk 0:02:37]}  Bxe5 {[%clk 0:02:24]} 15. Qc1 {[%clk 0:02:25]}  Bh3 {[%clk 0:02:14]} 16. e4 {[%clk 0:02:20]}  d4 {[%clk 0:02:11]} 17. Ne2 {[%clk 0:02:15]}  Rad8 {[%clk 0:02:00]} 18. c3 {[%clk 0:02:07]}  d3 {[%clk 0:01:54]} 19. Qe3 {[%clk 0:01:48]}  d2 {[%clk 0:01:40]} 20. Rf1 {[%clk 0:01:47]}  Bxg2 {[%clk 0:01:37]} 21. Kxg2 {[%clk 0:01:47]}  Qd3 {[%clk 0:01:35]} 22. Qxd3 {[%clk 0:01:42]}  Rxd3 {[%clk 0:01:36]} 23. f4 {[%clk 0:01:29]}  Bc7 {[%clk 0:01:28]} 24. e5 {[%clk 0:01:28]}  Bb6 {[%clk 0:01:19]} 25. Rf3 {[%clk 0:01:25]}  Red8 {[%clk 0:01:18]} 26. Nd4 {[%clk 0:01:19]}  Rxf3 {[%clk 0:01:00]} 27. Nxf3 {[%clk 0:01:20]}  Be3 {[%clk 0:00:59]} 28. Kf1 {[%clk 0:01:21]}  a5 {[%clk 0:00:52]} 29. Ke2 {[%clk 0:01:21]}  Bc5 {[%clk 0:00:50]} 30. Rxd2 {[%clk 0:01:21]}  Rb8 {[%clk 0:00:49]} 31. Rd7 {[%clk 0:01:17]}  h6 {[%clk 0:00:49]} 32. Nd2 {[%clk 0:01:15]}  a4 {[%clk 0:00:45]} 33. Ne4 {[%clk 0:01:15]}  Bf8 {[%clk 0:00:45]} 34. h4 {[%clk 0:01:12]}  b5 {[%clk 0:00:40]} 35. h5 {[%clk 0:01:09]}  gxh5 {[%clk 0:00:40]} 36. Nf6+ {[%clk 0:01:09]}  Kg7 {[%clk 0:00:36]} 37. Nxh5+ {[%clk 0:01:09]}  Kg6 {[%clk 0:00:37]} 38. Nf6 {[%clk 0:01:07]}  b4 {[%clk 0:00:33]} 39. c4 {[%clk 0:01:07]}  b3 {[%clk 0:00:32]} 40. axb3 {[%clk 0:00:59]}  Rxb3 {[%clk 0:00:32]} 41. Rd2 {[%clk 0:00:51]}  Rxg3 {[%clk 0:00:32]} 42. Kf2 {[%clk 0:00:48]}  Rb3 {[%clk 0:00:31]} 43. Ne4 {[%clk 0:00:45]}  Kf5 {[%clk 0:00:29]} 44. Nd6+ {[%clk 0:00:43]}  Kxf4 {[%clk 0:00:28]} 45. Nxf7 {[%clk 0:00:40]}  Bc5+ {[%clk 0:00:28]} 46. Kg2 {[%clk 0:00:39]}  Rg3+ {[%clk 0:00:24]} 47. Kh2 {[%clk 0:00:38]}  Rg4 {[%clk 0:00:19]} 48. e6 {[%clk 0:00:33]}  Kf5 {[%clk 0:00:15]} 49. Nxh6+ {[%clk 0:00:33]}  Kg5 {[%clk 0:00:14]} 50. Nxg4 {[%clk 0:00:34]}  Kxg4 {[%clk 0:00:15]} 51. Re2 {[%clk 0:00:32]}  Be7 {[%clk 0:00:14]} 52. Kg2 {[%clk 0:00:31]}  Kf5 {[%clk 0:00:15]} 53. Kf3 {[%clk 0:00:31]}  Kf6 {[%clk 0:00:15]} 54. Ke4 {[%clk 0:00:31]}  Bc5 {[%clk 0:00:15]} 55. Kd3 {[%clk 0:00:31]}  Ke7 {[%clk 0:00:15]} 56. Kc3 {[%clk 0:00:30]}  Bd6 {[%clk 0:00:15]} 57. Kd4 {[%clk 0:00:29]}  Bb4 {[%clk 0:00:14]} 58. c5 {[%clk 0:00:29]}  a3 {[%clk 0:00:14]} 59. bxa3 {[%clk 0:00:26]}  Bxa3 {[%clk 0:00:15]} 60. Kc4 {[%clk 0:00:27]}  Bc1 {[%clk 0:00:16]} 61. Kd4 {[%clk 0:00:26]}  Bf4 {[%clk 0:00:16]} 62. Ke4 {[%clk 0:00:26]}  Bc7 {[%clk 0:00:16]} 63. Kf5 {[%clk 0:00:26]}  Bd8 {[%clk 0:00:16]} 64. Rd2 {[%clk 0:00:27]}  Ba5 {[%clk 0:00:15]} 65. Rd7+ {[%clk 0:00:27]}  Ke8 {[%clk 0:00:15]} 66. Ra7 {[%clk 0:00:27]}  Bb4 {[%clk 0:00:15]} 67. Kf6 {[%clk 0:00:25]}  Bc3+ {[%clk 0:00:16]} 68. Kf5 {[%clk 0:00:26]}  Bd4 {[%clk 0:00:17]} 69. Ra5 {[%clk 0:00:23]}  Ke7 {[%clk 0:00:16]} 70. Ra7+ {[%clk 0:00:22]}  Ke8 {[%clk 0:00:17]} 71. Ra5 {[%clk 0:00:13]}  Ke7 {[%clk 0:00:17]} 72. Ra7+ {[%clk 0:00:13]}  Ke8 {[%clk 0:00:17]} 1/2-1/2


[Site "https://www.chess.com"]

[Event "Titled Tuesday Blitz October 11 Late 2022"]
[White "Poltorak, Sebastian"]
[Black "Reshetnikov, Alexey"]
[WhiteFideId "1199498"]
[BlackFideId "4162080"]
[WhiteElo "2232"]
[BlackElo "2502"]
[Result "0-1"]
[Round "03"]
[TimeControl "180+1"]
[Date "2022.10.12"]
[WhiteClock "0:02:26"]
[BlackClock "0:01:39"]

1. d4 {[%clk 0:03:00]}  Nf6 {[%clk 0:03:00]} 2. c4 {[%clk 0:03:01]}  c6 {[%clk 0:03:00]} 3. Nf3 {[%clk 0:02:59]}  d5 {[%clk 0:03:01]} 4. Qb3 {[%clk 0:02:59]}  g6 {[%clk 0:02:56]} 5. Nc3 {[%clk 0:02:58]}  Bg7 {[%clk 0:02:56]} 6. Bf4 {[%clk 0:02:57]}  O-O {[%clk 0:02:55]} 7. e3 {[%clk 0:02:57]}  dxc4 {[%clk 0:02:14]} 8. Bxc4 {[%clk 0:02:56]}  Nbd7 {[%clk 0:02:13]} 9. O-O {[%clk 0:02:55]}  Nb6 {[%clk 0:02:13]} 10. Be2 {[%clk 0:02:53]}  Be6 {[%clk 0:02:12]} 11. Qc2 {[%clk 0:02:52]}  Nbd5 {[%clk 0:02:10]} 12. Bg3 {[%clk 0:02:50]}  Bf5 {[%clk 0:02:05]} 13. Bd3 {[%clk 0:02:45]}  Nb4 {[%clk 0:02:04]} 14. Bxf5 {[%clk 0:02:43]}  Nxc2 {[%clk 0:02:04]} 15. Bxc2 {[%clk 0:02:44]}  Nd5 {[%clk 0:02:03]} 16. Rfc1 {[%clk 0:02:36]}  Nxc3 {[%clk 0:01:56]} 17. bxc3 {[%clk 0:02:37]}  c5 {[%clk 0:01:55]} 18. Be4 {[%clk 0:02:36]}  cxd4 {[%clk 0:01:52]} 19. cxd4 {[%clk 0:02:36]}  Rc8 {[%clk 0:01:51]} 20. Bxb7 {[%clk 0:02:25]}  Rxc1+ {[%clk 0:01:50]} 21. Rxc1 {[%clk 0:02:26]}  Qa5 {[%clk 0:01:50]} 22. Rc2 {[%clk 0:02:26]}  Qb5 {[%clk 0:01:39]} 0-1


[Site "https://www.chess.com"]

[Event "Titled Tuesday Blitz October 11 Late 2022"]
[White "Preotu, Razvan"]
[Black "Ballester Llagaria, Luis Eduardo"]
[WhiteFideId "2613280"]
[BlackFideId "2297620"]
[WhiteElo "2407"]
[BlackElo "2344"]
[Result "1-0"]
[Round "03"]
[TimeControl "180+1"]
[Date "2022.10.12"]
[WhiteClock "0:00:34"]
[BlackClock "0:00:08"]

1. e4 {[%clk 0:03:00]}  e6 {[%clk 0:02:59]} 2. d4 {[%clk 0:02:58]}  d5 {[%clk 0:03:00]} 3. Nc3 {[%clk 0:02:59]}  Be7 {[%clk 0:02:59]} 4. Bd3 {[%clk 0:02:49]}  Nf6 {[%clk 0:02:51]} 5. e5 {[%clk 0:02:49]}  Nfd7 {[%clk 0:02:52]} 6. Nce2 {[%clk 0:02:45]}  c5 {[%clk 0:02:52]} 7. c3 {[%clk 0:02:46]}  Nc6 {[%clk 0:02:52]} 8. Nf3 {[%clk 0:02:44]}  Qb6 {[%clk 0:02:21]} 9. O-O {[%clk 0:02:42]}  a5 {[%clk 0:02:21]} 10. a4 {[%clk 0:02:36]}  cxd4 {[%clk 0:02:12]} 11. cxd4 {[%clk 0:02:37]}  Nb4 {[%clk 0:02:13]} 12. Bb1 {[%clk 0:02:37]}  Qc7 {[%clk 0:02:06]} 13. Nf4 {[%clk 0:02:35]}  g6 {[%clk 0:02:02]} 14. Ra3 {[%clk 0:02:20]}  Nb6 {[%clk 0:02:01]} 15. Rc3 {[%clk 0:02:14]}  Qd8 {[%clk 0:02:01]} 16. b3 {[%clk 0:02:06]}  Bd7 {[%clk 0:02:01]} 17. Qe2 {[%clk 0:01:48]}  Rc8 {[%clk 0:01:54]} 18. Rxc8 {[%clk 0:01:47]}  Qxc8 {[%clk 0:01:55]} 19. Bd2 {[%clk 0:01:47]}  Qb8 {[%clk 0:01:37]} 20. h4 {[%clk 0:01:47]}  Qa7 {[%clk 0:01:18]} 21. h5 {[%clk 0:01:36]}  Qa6 {[%clk 0:01:12]} 22. Qe3 {[%clk 0:01:33]}  g5 {[%clk 0:01:08]} 23. Nd3 {[%clk 0:01:32]}  h6 {[%clk 0:01:07]} 24. Nh2 {[%clk 0:01:31]}  Kf8 {[%clk 0:00:41]} 25. f4 {[%clk 0:01:27]}  Nxd3 {[%clk 0:00:29]} 26. Bxd3 {[%clk 0:01:26]}  Qa7 {[%clk 0:00:26]} 27. f5 {[%clk 0:01:15]}  Ke8 {[%clk 0:00:24]} 28. Ng4 {[%clk 0:01:09]}  Kd8 {[%clk 0:00:18]} 29. Qe1 {[%clk 0:00:48]}  Bb4 {[%clk 0:00:14]} 30. Bxb4 {[%clk 0:00:48]}  axb4 {[%clk 0:00:15]} 31. Qxb4 {[%clk 0:00:48]}  Nc4 {[%clk 0:00:15]} 32. bxc4 {[%clk 0:00:47]}  Qxd4+ {[%clk 0:00:15]} 33. Nf2 {[%clk 0:00:47]}  Qxe5 {[%clk 0:00:11]} 34. Qxb7 {[%clk 0:00:43]}  Ke7 {[%clk 0:00:09]} 35. f6+ {[%clk 0:00:41]}  Qxf6 {[%clk 0:00:08]} 36. Qb4+ {[%clk 0:00:35]}  Ke8 {[%clk 0:00:08]} 37. cxd5 {[%clk 0:00:34]} 1-0


[Site "https://www.chess.com"]

[Event "Titled Tuesday Blitz October 11 Late 2022"]
[White "Prieto Aranguren, Alain"]
[Black "Sohal, Tanraj"]
[WhiteFideId "2268906"]
[BlackFideId "2608499"]
[WhiteElo "2209"]
[BlackElo "2200"]
[Result "0-1"]
[Round "03"]
[TimeControl "180+1"]
[Date "2022.10.12"]
[WhiteClock "0:00:01"]
[BlackClock "0:01:07"]

1. e4 {[%clk 0:02:59]}  c6 {[%clk 0:02:57]} 2. d4 {[%clk 0:02:58]}  d6 {[%clk 0:02:53]} 3. f4 {[%clk 0:02:58]}  Nf6 {[%clk 0:02:45]} 4. Bd3 {[%clk 0:02:55]}  g6 {[%clk 0:02:45]} 5. Nf3 {[%clk 0:02:54]}  Bg7 {[%clk 0:02:45]} 6. e5 {[%clk 0:02:54]}  dxe5 {[%clk 0:02:45]} 7. fxe5 {[%clk 0:02:54]}  Nd5 {[%clk 0:02:43]} 8. c3 {[%clk 0:02:53]}  c5 {[%clk 0:02:43]} 9. O-O {[%clk 0:02:49]}  O-O {[%clk 0:02:41]} 10. Bg5 {[%clk 0:02:46]}  cxd4 {[%clk 0:02:40]} 11. cxd4 {[%clk 0:02:46]}  Nc6 {[%clk 0:02:40]} 12. Nc3 {[%clk 0:02:43]}  h6 {[%clk 0:02:35]} 13. Bh4 {[%clk 0:02:41]}  Ne3 {[%clk 0:02:35]} 14. Qe2 {[%clk 0:02:32]}  Nxf1 {[%clk 0:02:34]} 15. d5 {[%clk 0:02:21]}  Nb4 {[%clk 0:02:20]} 16. Be4 {[%clk 0:01:51]}  Nxh2 {[%clk 0:02:12]} 17. Kxh2 {[%clk 0:01:47]}  Bg4 {[%clk 0:02:10]} 18. Bg3 {[%clk 0:01:34]}  Rc8 {[%clk 0:01:59]} 19. a3 {[%clk 0:01:29]}  Na6 {[%clk 0:01:59]} 20. e6 {[%clk 0:01:21]}  f5 {[%clk 0:01:56]} 21. Bd3 {[%clk 0:01:13]}  Nc5 {[%clk 0:01:55]} 22. Bc4 {[%clk 0:01:13]}  a6 {[%clk 0:01:50]} 23. d6 {[%clk 0:00:59]}  b5 {[%clk 0:01:49]} 24. Ba2 {[%clk 0:00:59]}  Kh7 {[%clk 0:01:44]} 25. Rd1 {[%clk 0:00:56]}  f4 {[%clk 0:01:35]} 26. Bh4 {[%clk 0:00:44]}  Bf6 {[%clk 0:01:35]} 27. Bxf6 {[%clk 0:00:31]}  Rxf6 {[%clk 0:01:35]} 28. dxe7 {[%clk 0:00:22]}  Qxe7 {[%clk 0:01:35]} 29. Ng5+ {[%clk 0:00:20]}  hxg5 {[%clk 0:01:34]} 30. Qxg4 {[%clk 0:00:20]}  Rf5 {[%clk 0:01:23]} 31. Ne4 {[%clk 0:00:12]}  Rd8 {[%clk 0:01:17]} 32. Rxd8 {[%clk 0:00:09]}  Qxd8 {[%clk 0:01:16]} 33. Qh3+ {[%clk 0:00:05]}  Kg7 {[%clk 0:01:15]} 34. Qc3+ {[%clk 0:00:03]}  Kh7 {[%clk 0:01:06]} 35. Nxc5 {[%clk 0:00:01]}  g4 {[%clk 0:01:07]} 0-1


[Site "https://www.chess.com"]